Cogmind - Beta 16 @@@ ROGUE MODE // 2026.01.26 @ 18:35:00 Player: vorsii Result: Destroyed by D-53 Grenadier with Mini Grenade Launcher Performance ------------- Evolutions (0) 0 Regions Visited (2) 400 Robots Destroyed (17) 85 Value Destroyed (397) 397 Prototype IDs (0) 0 Alien Tech Used (0) 0 Bonus (0) 0 TOTAL SCORE: 882 Bonus ------- None Cogmind --------- Core Integrity 0/250 Matter 290/300 Energy 80/100 System Corruption 0% Temperature Cool (51) Movement Treading (320) Ox2 Location -10/Mines Parts ------- > --- POWER (1) -------- (None) > --- PROPULSION (2) --- Light Treads > --- UTILITY (2) ------ High-capacity Storage Unit > --- WEAPON (2) ------- Particle Gun Particle Gun > --- INVENTORY (20) --- Light Ion Engine Light Ion Engine Light Treads Small Storage Unit Medium Matter Pod (100) Medium Matter Pod (77) Visual Processing Unit Visual Processing Unit Sensor Array ECM Suite EM Shotgun EM Shotgun Medium Laser Peak State ------------ > --- POWER ------------ Ion Engine > --- PROPULSION ------- Light Treads Light Treads > --- UTILITY ---------- High-capacity Storage Unit Terrain Scanner > --- WEAPON ----------- EM Shotgun Particle Gun > --- INVENTORY -------- Light Ion Engine Light Ion Engine Light Treads Small Storage Unit Medium Matter Pod Medium Matter Pod Visual Processing Unit Visual Processing Unit Sensor Array ECM Suite EM Shotgun Medium Laser Mining Laser [Rating: 10] Favorites ----------- Power Ion Engine Engine Ion Engine Propulsion Light Treads Treads Light Treads Utility High-capacity Storage Unit Device ECM Suite Storage High-capacity Storage Unit Weapon Medium Laser Energy Gun Medium Laser Ballistic Cannon Light Cannon Special Weapon Mining Laser Build | -11 -10 -10 ------- Run | Yrd Mat Min Slots Evolved . | . . . Power . | . . . Propulsion . | . . . Utility . | . . . Weapon . | . . . Parts Attached 19 | 6 9 4 Power 2 | 1 1 . Engine 2 | 1 1 . Core . | . . . Reactor . | . . . Propulsion 6 | 2 4 . Treads 6 | 2 4 . Leg . | . . . Wheel . | . . . Hover . | . . . Flight . | . . . Utility 4 | 1 2 1 Device 2 | . 1 1 Storage 2 | 1 1 . Processor . | . . . Hackware . | . . . Protection . | . . . Artifact . | . . . Weapon 7 | 2 2 3 Energy Gun 5 | 2 1 2 Energy Cannon . | . . . Ballistic Gun . | . . . Ballistic Cannon 1 | . 1 . Launcher . | . . . Special Weapon 1 | . . 1 Impact Weapon . | . . . Slashing Weapon . | . . . Piercing Weapon . | . . . Special Melee Weapon . | . . . Unidentified Prototypes . | . . . Parts Lost 9 | . 5 4 Power 2 | . 1 1 Propulsion 3 | . 2 1 Utility 1 | . . 1 Weapon 3 | . 2 1 Highest Loss Streak 4 | . 4 4 To Critical Strikes . | . . . Average Backups 7 | 2 7 13 Power 2 | . 2 2 Propulsion . | . . 1 Utility 3 | . 2 7 Weapon 1 | . 1 3 Tool/Special . | . . . Unused Backups 10 | . 1 9 Power 2 | . . 2 Propulsion 1 | . . 1 Utility 5 | . . 5 Weapon 2 | . 1 1 Tool/Special . | . . . Average Slot Usage (%) 95 | . 95 98 Engine 13 | . 13 14 Treads 28 | . 28 28 Device 11 | . 11 13 Storage 14 | . 14 14 Energy Gun 23 | . 22 26 Ballistic Cannon 3 | . 3 . Peak Build Rating 10 | 6 9 10 Average Rating 7 | 3 7 9 On Entrance 5 | . 6 9 Avg Prop Armor Cover (%) . | . . . Naked Turns . | . . . Heaviest Build 52 | 14 52 52 Greatest Support 40 | 40 40 40 Greatest Overweight (x) 1 | 1 1 1 Average Overweight (x) . | . . 1 Largest Inventory Capacity 20 | 8 20 20 Average Capacity 16 | 7 16 20 Most Carried 14 | 6 13 14 Average Carried 7 | 2 7 13 Final Capacity 20 | 8 20 20 Final Carried 13 | 2 13 13 Class Distribution -------------------- 100% | Mutant Dominant Class ---------------- Mutant | -10/Materials Mutant | -10/Mines Resources | -11 -10 -10 ----------- Run | Yrd Mat Min Matter Collected 648 | 149 327 172 Remotely . | . . . Salvage Created 574 | . 402 172 Parts 29 | . 19 10 Haulers Intercepted 1 | . 1 . Recyclers Shooed . | . . . Parts Field Recycled . | . . . Retrieved Matter . | . . . Parts Self-Destructed . | . . . Prevented . | . . . Parts Restored . | . . . Kills | -11 -10 -10 ------- Run | Yrd Mat Min Combat Hostiles Destroyed 10 | . 8 2 Guns 7 | . 5 2 Cannons 3 | . 3 . Classes Destroyed 7 | . 7 . Worker 1 | . 1 . Hauler 1 | . 1 . Recycler 2 | . 1 1 Operator 1 | . 1 . Watcher 2 | . 2 . Swarmer 3 | . 3 . Grunt 7 | . 5 2 Best Kill Streak 4 | . 4 2 Combat Bots Only 3 | . 3 2 Max Kills in Single Turn 2 | . 2 1 Gunslinging . | . . . Exploded . | . . . Melee . | . . . Uniques/NPCs Destroyed . | . . . Combat | -11 -10 -10 -------- Run | Yrd Mat Min Hostile Shots Fired 97 | . 76 21 Missed 23 | . 22 1 Hits 74 | . 54 20 Projectile 74 | . 54 20 AOE 9 | . . 9 Damage Taken 1314 | . 810 504 Core 266 | . 157 109 Absorbed by Shields . | . . . Regen/Repaired (Parts) 70 | . 70 . Core Remaining (%) 100 | 100 . . Volleys Fired 64 | . 51 13 Largest 2 | . 2 2 Hottest 165 | . 115 165 Shots Fired 109 | . 83 26 Gun 78 | . 55 23 Cannon 28 | . 28 . Launcher . | . . . Special 3 | . . 3 Kinetic 28 | . 28 . Thermal 38 | . 21 17 Explosive . | . . . Electromagnetic 43 | . 34 9 Robot Hit Streak 9 | . 9 5 Robot Miss Streak 3 | . 3 1 Penetration Max . | . . . Secondary Targets . | . . . Shots Hit Robots 65 | . 50 15 Core Hits 24 | . 17 7 Critical Kills . | . . . Critical Parts Destroyed . | . . . Critical Strikes 4 | . 4 . Burn 3 | . 3 . Corrupt 1 | . 1 . Melee Attacks . | . . . Impact . | . . . Slashing . | . . . Piercing . | . . . Sneak Attacks . | . . . Combat Hostiles . | . . . Follow-up Attacks . | . . . Damage Inflicted 1164 | . 974 190 Guns 687 | . 497 190 Cannons 287 | . 287 . Explosions 190 | . 190 . Melee . | . . . Ramming . | . . . Kinetic 287 | . 287 . Thermal 455 | . 372 83 Explosive . | . . . Electromagnetic 422 | . 315 107 Impact . | . . . Slashing . | . . . Piercing . | . . . Highest Corruption . | . . . Average Corruption . | . . . Corruption Purged . | . . . Corruption Blocked . | . . . Overload Shots . | . . . Overflow Damage 159 | . 159 . Projectiles 11 | . 11 . Explosions 148 | . 148 . Melee . | . . . Knockbacks 3 | . 3 . Impact . | . . . Kinetic 3 | . 3 . Secondary . | . . . Self-Inflicted Damage 233 | . 233 . Shots 3 | . 3 . Rammed . | . . . Targets Rammed . | . . . Kicked . | . . . Crushed . | . . . Highest Temperature 414 | . 194 414 Average Temperature 91 | . 61 154 Received Heat Transfer 345 | . 252 93 Effects 3 | . . 3 Shutdowns 2 | . . 2 Energy Bleed 1 | . . 1 Siege Activations . | . . . Martial Activations . | . . . Shielding Activations . | . . . Robots Disrupted . | . . . Combat Hostiles . | . . . Robots Corrupted . | . . . Combat Hostiles . | . . . Parts Fried . | . . . Impact Corruptions . | . . . Robots Melted . | . . . Combat Hostiles . | . . . Parts Melted 2 | . 2 . Heat Transferred 1112 | . 890 222 Parts Sabotaged . | . . . Parts Stolen . | . . . Parts Stripped . | . . . Power Chain Reactions 2 | . 2 . Alert | -11 -10 -10 ------- Run | Yrd Mat Min Maximum Alert Level . | . . . Low Security (%) 100 | 100 100 100 Level 1 . | . . . Level 2 . | . . . Level 3 . | . . . Level 4 . | . . . Level 5 . | . . . High Security . | . . . Max Security . | . . . Peak Influence 110 | . 110 50 Initial 3 | . . 3 Average 21 | . 23 12 Influence Increases 377 | . 320 57 Destroy 0b10 Robot/C 200 | . 160 40 Destroy 0b10 Robot/NC 35 | . 30 5 Destroy Leader 46 | . 36 10 Successful Hack 4 | . 4 . Disable Machine 60 | . 60 . Destroy Structure 32 | . 30 2 Influence Decreases 377 | . 311 66 Entered New Map 6 | . . 6 Time Decay 311 | . 261 50 Lost Part 60 | . 50 10 Squads Dispatched 1 | . 1 . Investigation . | . . . Extermination . | . . . Reinforcement 1 | . 1 . Assault . | . . . Garrison . | . . . Intercept . | . . . Searches Triggered . | . . . Construction Impeded . | . . . Haulers Reinforced . | . . . Active Scanning Responses . | . . . Cargo Convoy Interrupts . | . . . Stealth | -11 -10 -10 --------- Run | Yrd Mat Min Distress Signals 1 | . 1 . Communications Jammed . | . . . Distress Signals . | . . . Times Spotted 23 | . 19 4 Peak Tracking Total 4 | . 4 2 Tactical Retreats 3 | . 3 . ECM-based Alert Blocks 4 | . 4 . Traps | -11 -10 -10 ------- Run | Yrd Mat Min Traps Triggered . | . . . Indirectly . | . . . Trap Hack Attempts . | . . . Triggered . | . . . Disarmed . | . . . Reprogrammed . | . . . Reused . | . . . Traps Extracted . | . . . Installed . | . . . Triggered . | . . . Machines | -11 -10 -10 ---------- Run | Yrd Mat Min Machines Disabled 4 | . 4 . Max in Single Turn 2 | . 2 . Machines Repaired . | . . . Machines Dismantled . | . . . Machines Sabotaged . | . . . Overloaded Fab Kills . | . . . Hacking | -11 -10 -10 --------- Run | Yrd Mat Min Machines Accessed 6 | . 6 . Terminals 3 | . 3 . Fabricators . | . . . Repair Stations 1 | . 1 . Recycling Units 2 | . 2 . Scanalyzers . | . . . Garrison Access . | . . . Total Hacks 16 | . 16 . Successful 8 | . 8 . Failed 8 | . 8 . Catastrophic 1 | . 1 . Database Lockouts . | . . . Manual . | . . . Terminals 7 | . 7 . Fabricators . | . . . Repair Stations 2 | . 2 . Recycling Units 7 | . 7 . Scanalyzers . | . . . Garrison Access . | . . . Terminal Hacks 2 | . 2 . Emergency Access Points 1 | . 1 . Alert Level 1 | . 1 . Fabricator Hacks . | . . . Repair Station Hacks 2 | . 2 . Scan Component 1 | . 1 . Repair 1 | . 1 . Recycling Unit Hacks 4 | . 4 . Process 1 | . 1 . Report Inventory 2 | . 2 . Retrieve Matter 1 | . 1 . Scanalyzer . | . . . Garrison Access Hacks . | . . . Unauthorized Hacks . | . . . Terminals . | . . . Fabricators . | . . . Repair Stations . | . . . Recycling Units . | . . . Scanalyzers . | . . . Garrison Access . | . . . Data Cores Recovered . | . . . Used . | . . . Hacking Detections 4 | . 4 . Full Trace Events . | . . . Feedback Events . | . . . Feedback Blocked . | . . . Robot Schematics Acquired . | . . . Robots Built . | . . . Authchips . | . . . Time . | . . . Total Robot Build Rating . | . . . Part Schematics Acquired . | . . . Parts Built . | . . . Authchips . | . . . Time . | . . . Total Part Build Rating . | . . . Part Studies Acquired . | . . . Parts Repaired 1 | . 1 . Time 32 | . 32 . Parts Recycled . | . . . Recycled Matter 17 | . 17 . Retrieved Matter 17 | . 17 . Retrieved Components . | . . . Parts Scanalyzed . | . . . Part Schematics Acquired . | . . . Parts Damaged . | . . . Bothacking | -11 -10 -10 ------------ Run | Yrd Mat Min Used RIF Installer . | . . . Robots Hacked . | . . . Non-combat . | . . . Combat . | . . . Robot Hacks Applied . | . . . Relay Couplers Released . | . . . Fabnet Peak Effective % . | . . . Robots Rewired . | . . . Allies Hacked . | . . . Hacks Repelled . | . . . Allies | -11 -10 -10 -------- Run | Yrd Mat Min Total Allies . | . . . Largest Group . | . . . Highest-Rated Group . | . . . Highest-Rated Ally . | . . . Total Orders . | . . . Ally Attacks . | . . . Total Damage . | . . . Kills . | . . . Allies Corrupted . | . . . Allies Melted . | . . . Intel | -11 -10 -10 ------- Run | Yrd Mat Min Active Infowar (turns) 1557 | . 1336 221 Terrain 165 | . . 165 ECM 1392 | . 1336 56 Robot Analysis Total . | . . . Derelict Logs Recovered . | . . . Drone Launches . | . . . Drone Recoveries . | . . . Exploration | -11 -10 -10 ------------- Run | Yrd Mat Min Turns Passed 1921 | 58 1638 225 Spaces Moved 762 | 36 654 72 Core 21 | 21 . . Treads 741 | 15 654 72 Legs . | . . . Wheels . | . . . Hover . | . . . Flight . | . . . Fastest Speed 50 | 50 160 240 Average Speed 210 | 122 211 240 Slowest Speed 240 | 160 240 240 Overloaded Moves . | . . . Propulsion Burnouts . | . . . Robots Hopped . | . . . Potential Cave-ins . | . . . Cave-ins Triggered . | . . . Exploration Rate (%) 36 | 4 85 20 Regions Visited 2 Branch Regions 1 Pre-discovered Areas . | . . . Known Exits Taken . | . . . Unknown Exits Taken 2 | 1 1 . Scrap Searched . | . . . Spaces Dug 3 | . . 3 Terrain Destroyed 46 | . 43 3 Melee . | . . . Projectile 3 | . . 3 AOE 43 | . 43 . Terrain Rammed . | . . . Walls Destroyed . | . . . Machines Disabled . | . . . Actions | -11 -10 -10 --------- Run | Yrd Mat Min Total 965 | 50 824 91 Wait 86 | 1 84 1 Move 760 | 35 653 72 Hop . | . . . Pick Up 30 | 8 21 1 Fast Attach . | . . . Attach 14 | 6 7 1 Detach . | . . . Swap 8 | . 5 3 Drop 3 | . 3 . Fire 64 | . 51 13 Melee . | . . . Ram . | . . . Kick . | . . . Crush . | . . . Escape Stasis . | . . . Rewire . | . . . Trap . | . . . Miscellaneous . | . . . Route ------- -11/Scrapyard -10/Materials (discovered 3 exits: [*Mat] / [*Min x2]) -10/Mines History --------- Turn | Location | Event 15 | -11/Scrapyard | Discovered new exit (range 16) 59 | -11/Scrapyard | Entered Materials 59 | -10/Materials | Discovered new exit (range 8) 307 | -10/Materials | Build established: Mutant 668 | -10/Materials | Discovered new exit (range 12) 879 | -10/Materials | Core integrity fell below 50% 907 | -10/Materials | Lost 4 parts (1p2n1w) 964 | -10/Materials | Discovered new exit (range 6) 1414 | -10/Materials | Repaired Particle Gun 1697 | -10/Materials | Entered Mines 1716 | -10/Mines | Met a Derelict bent on vengeance 1870 | -10/Mines | Assembled infested the area 1916 | -10/Mines | Core integrity fell below 20% 1922 | -10/Mines | Destroyed by D-53 Grenadier with Mini Grenade Launcher Last Messages --------------- 01834_ Power failure, Ion Engine shutdown. 01836_ R-06 Scavenger collects Corrupted Ion Engine. 01837_ Overheating: Energy bleed (-32). 01838_ Acquired Particle Gun. 01840_ R-06 Scavenger collects Heat Sink. 01844_ R-06 Scavenger collects Aluminum Leg. 01847_ R-06 Scavenger collects Corrupted Sml. Laser. 01854_ R-06 Scavenger destroyed. 01857_ Acquired 64 matter. 01870_ ALERT: Infestation in the mines, dispatching Demolisher response squad. 01914_ C-45 Heavy ARC bursts open, deploying its payload. 01914_ D-53 Grenadier unfolds itself. 01914_ Mining Laser destroyed. 01917_ The unstable cave ceiling collapses. 01918_ Terrain Scanner destroyed. 01920_ The unstable cave ceiling collapses. 01920_ Ion Engine destroyed. 01920_ Lgt. Treads destroyed. 01921_ The unstable cave ceiling collapses. Map ----- +----------------------------------------------------+ | ??????????????#?????? #??????#???????????????? | | ???????????#?????#??? ???????????????????????? | | ????????????????????? ???#???????????????????? | | ??????????????????#??# ???#????????????????????? | | ????????????????#????# #???#???? ???????????????? | | ?????###????????????## #?#???? ???#?????????????? | | ????## ##???????????## #???????? #?????????????? | | ##### #???########## #?#?#??? #?????????????? | | # #???# = #??????? #?????????????? | | ##??# ########!=#?????? ##????????????? | | #### ##??#??#!*#?????? ### ?????????? | | #### #?#????# =###???# ?????????? | | ##??## ########????##*[ #### ?????????? | | #????###???#???????# ! ????????? | | #?????#?????????#?# #????????? | | #???????#?????????# #?????????? | | ##?????????#?###??### ## ????????????? | | ##???????????## ???##### ##???????????????? | | #????????????# ???#?## ##????????????????? | | ???????????? ####??# #?????????????????? | | ????????????? ### ##?????????????????? | | ?????????????? ??# # # #??????????????????? | | ????????????????????# #??????????????????? | | ????????????????#???# % #??????????????????? | | ????????????????????# dd ##??????????????????? | | ????????????????????# @ #??#??#????????????? | | ???????????????????## # #??????????????????? | | ????????????????????# #??????????????????? | | ????????????????????# #??????????????????? | | ????????????#???????## # #??????????????????? | | ????????????????#????## # ###??????????????????? | | | | | | | | | | | | | | | | | | | | | | | | | | | | | | | | | | | | | | | +----------------------------------------------------+ Best States ------------- Heat Dissipation 25 Energy Generation 10 Energy Capacity 250 Matter Stores 300 Matter Capacity 300 Sight Range 16 Terrain Scan Range 14 Terrain Scan Density 10 ECM Strength 1 Evasion (%) 40 Recoil Reduction 2 Item Schematics ----------------- None Robot Schematics ------------------ None Fabricated ------------ Nothing Repaired ---------- Particle Gun | 6% | -10/Materials Studied --------- None Alien Tech Used ----------------- None Achievements -------------- None Challenges ------------ None Game ------ Seed ReflectiveSmallRecalibrator Manual? 0 Play Time 00:17:50 Cumulative 20.0 hours Start 2026.01.26 @ 18:17:49 End 2026.01.26 @ 18:35:00 Sessions 1 Manual Loads 0 Difficulty Rogue Special Mode None Game No. 28 Rogue 28 Adventurer 0 Explorer 0 Win Type - Total 0 Types 0/0/0/0/0/0/0/0/0/0 Lore% 22 Gallery% 15 Achievement% 16 Wizard Run 0 Options --------- Layout 0 ASCII 0 Keyboard 0 Movement Mouse Keybinds 0 Fullscreen 1 Font 36/Smallcaps Map View 76x50 Zoom Use 0% Tactical HUD 1 Map Filters NONE Filters NONE Steam 1 RUN: d63051fd-8071-4b99-8cda-4e961ee20867